fUSD/lending_fUSD_20260406
["ID","MTS","AMOUNT","RATE_DAILY","PERIOD"]
[419922007,1775508648297,-500.0,0.00015999,2]
[419922008,1775508648306,-500.0,0.00015999,2]
[419922009,1775508648315,-500.0,0.00015999,2]
[419922010,1775508648325,-500.0,0.00015999,2]
[419922011,1775508648334,-500.0,0.00015999,2]
[419922012,1775508648343,-520.24272845,0.00015999,2]
[419922013,1775508648352,-500.0,0.00015999,2]
[419922014,1775508648669,-500.0,0.00015999,2]
[419922015,1775508648678,-500.0,0.00015999,2]
[419922016,1775508648688,-566.37,0.00015999,2]
[419922017,1775508648697,-228.92,0.00015999,2]
[419922018,1775508648706,-502.24991065,0.00015999,2]
[419922019,1775508648715,-500.0,0.00015999,2]
[419922020,1775508648724,-500.0,0.00015999,2]
[419922021,1775508648734,-500.0,0.00015999,2]
[419922022,1775508648743,-496.6511046,0.00015999,2]
[419922023,1775508648752,-620.46209973,0.00015999,2]
[419922024,1775508648761,-163.951386,0.00015999,2]
[419922025,1775508648770,-151.0,0.00015999,2]
[419922026,1775508648780,-162.535463,0.00015999,2]
[419922027,1775508648789,-387.488501,0.00015999,2]
[419922028,1775508648798,-163.951386,0.00015999,2]
[419922029,1775508648807,-151.0,0.00015999,2]
[419922030,1775508648816,-162.535463,0.00015999,2]
[419922031,1775508648826,-387.488501,0.00015999,2]
[419922032,1775508648835,-586.836056,0.00015999,2]
[419922033,1775508648844,-163.951386,0.00015999,2]
[419922034,1775508648853,-411.041412,0.00015999,2]
[419922035,1775508648862,-162.535463,0.00015999,2]
[419922036,1775508648872,-387.488501,0.00015999,2]
[419922037,1775508648881,-586.836056,0.00015999,2]
[419922038,1775508648890,-163.951386,0.00015999,2]
[419922039,1775508648900,-411.041412,0.00015999,2]
[419922040,1775508648909,-162.535463,0.00015999,2]
[419922041,1775508648918,-586.836056,0.00015999,2]
[419922042,1775508648927,-387.488501,0.00015999,2]
[419922043,1775508648937,-586.836056,0.00015999,2]
[419922044,1775508648946,-402.8195,0.00015999,2]
[419922045,1775508648956,-914.8218,0.00015999,2]
[419922046,1775508648965,-402.8195,0.00015999,2]
[419922047,1775508648974,-245.770064,0.00015999,2]
[419922048,1775508648983,-914.8218,0.00015999,2]
[419922049,1775508648993,-151.0,0.00015999,2]
[419922050,1775508649002,-411.041412,0.00015999,2]
[419922051,1775508649011,-402.8195,0.00015999,2]
[419922052,1775508649021,-245.770064,0.00015999,2]
[419922053,1775508649030,-151.0,0.00015999,2]
[419922054,1775508649039,-914.8218,0.00015999,2]
[419922055,1775508649049,-151.0,0.00015999,2]
[419922056,1775508649059,-156.226732,0.00015999,2]
[419922057,1775508649068,-151.0,0.00015999,2]
[419922058,1775508649078,-411.041412,0.00015999,2]
[419922059,1775508649087,-151.0,0.00015999,2]
[419922060,1775508649097,-402.8195,0.00015999,2]
[419922061,1775508649106,-245.770064,0.00015999,2]
[419922062,1775508649116,-151.0,0.00015999,2]
[419922063,1775508649125,-914.8218,0.00015999,2]
[419922064,1775508649134,-150.0,0.00015999,2]
[419922065,1775508649144,-230.53339563,0.00015999,2]
[419922066,1775508649153,-300484.04798792,0.00016,2]
[419922067,1775508649284,-1219.17117707,0.00015394,2]
[419922068,1775508649319,-4801.82882293,0.00015394,2]
[419922069,1775508649329,-151.0,0.000159,2]
[419922070,1775508649339,-151.0,0.00015999,2]
[419922071,1775508649349,-151.0,0.00015999,2]
[419922072,1775508649358,-7006.31528555,0.00016,2]
[419922073,1775508649730,-500.0,0.0001074,2]
[419922074,1775508649739,-199.480472,0.00013973,2]
[419922075,1775508649749,-865.0,0.00015415,2]
[419922076,1775508649764,-245.770064,0.000159,2]
[419922077,1775508649774,-151.0,0.000159,2]
[419922078,1775508649783,-245.770064,0.00015999,2]
[419922079,1775508649792,-151.0,0.00015999,2]
[419922080,1775508649802,-838.60559626,0.00016,2]
[419922081,1775508649813,-499879.42695621,0.00016,2]
[419922082,1775508649825,-987.61314542,0.00016,2]
[419922083,1775508649836,-17465.09777254,0.00016,2]
[419922084,1775508649847,-2170.86881757,0.00016,2]
[419922085,1775508649866,-44690.01544019,0.00016,2]
[419922086,1775508649912,-396536.57968047,0.00016,2]
[419922087,1775508649923,-38403.48642795,0.00016,2]
[419922088,1775508650124,-516.0,0.00015415,2]
[419922089,1775508650133,-196.402077,0.000159,2]
[419922090,1775508650143,-3798.53062845,0.00016,2]
[419922091,1775508650166,-5417.68795149,0.00016,2]
[419922096,1775509540098,-294.0,0.0001,2]
[419922097,1775509540119,-483.65,0.00010078,2]
[419922098,1775509540140,-205.42920787,0.00010199,2]
[419922099,1775509640089,-300.0,0.00010198,2]
[419922100,1775509640109,-45.02866372,0.00010199,2]
[419922101,1775509692894,174.17,5.04e-05,2]
[419922102,1775509693303,174.17,6.3e-05,2]
[419922103,1775509693524,174.17,7.56e-05,2]
[419922106,1775509746090,-174.17,8.819e-05,2]
[419922107,1775509746117,-174.17,0.00010079,2]
[419922108,1775509746142,-254.97133628,0.00010199,2]
[419922109,1775509746170,-1200.0,0.00010199,2]
[419922110,1775509746195,-300.0,0.00010199,2]
[419922111,1775509746219,-17937.30321221,0.000102,2]
[419922112,1775509757091,-250.0,9.701e-05,2]
[419922113,1775509757111,-1814.81059402,0.000102,2]
[419922114,1775509766081,-3167.92407316,0.000102,2]
[419922115,1775509789964,490.0,0.0001,2]
[419922154,1775509834340,-294.0,9.992e-05,2]
[419922155,1775509834350,-1600.0,9.992e-05,2]
[419922156,1775509834359,-1125.39432745,0.0001,2]
[419922157,1775509834369,-777.16139027,0.0001,2]
[419922158,1775509834378,-3212.48832637,0.0001,2]
[419922159,1775509834388,-631.70041554,0.000102,2]
[419922160,1775509834398,-500.0,0.00010244,3]
[419922161,1775509834407,-339.9,0.00010503,2]
[419922162,1775509834417,-1824.4793,0.00010541,2]
[419922163,1775509834426,-521.24478864,0.00010573,2]
[419922164,1775509834435,-202.74253669,0.00010631,2]
[419922165,1775509834445,-150.0,0.00010634,2]
[419922166,1775509834454,-300.0,0.00010634,2]
[419922167,1775509834464,-300.0,0.00010634,2]
[419922168,1775509834474,-1200.0,0.00010634,2]
[419922169,1775509834483,-200.0,0.00010635,2]
[419922170,1775509834492,-151.0,0.00010635,2]
[419922171,1775509834502,-151.0,0.00010635,2]
[419922172,1775509834512,-151.0,0.00010635,2]
[419922173,1775509834521,-151.0,0.00010635,2]
[419922174,1775509834531,-151.0,0.00010635,2]
[419922175,1775509834540,-151.0,0.00010635,2]
[419922176,1775509834550,-151.0,0.00010635,2]
[419922177,1775509834560,-151.0,0.00010635,2]
[419922178,1775509834569,-151.0,0.00010635,2]
[419922179,1775509834578,-151.0,0.00010635,2]
[419922180,1775509834587,-151.0,0.00010635,2]
[419922181,1775509834596,-151.0,0.00010635,2]
[419922182,1775509834606,-151.0,0.00010635,2]
[419922183,1775509834615,-151.0,0.00010635,2]
[419922184,1775509834625,-151.0,0.00010635,2]
[419922185,1775509834634,-151.0,0.00010635,2]
[419922186,1775509834644,-151.0,0.00010635,2]
[419922187,1775509834654,-151.0,0.00010635,2]
[419922188,1775509835061,-151.0,0.00010635,2]
[419922189,1775509835070,-151.0,0.00010635,2]
[419922190,1775509835079,-151.0,0.00010635,2]
[419922191,1775509835089,-151.0,0.00010635,2]
[419922192,1775509835098,-151.0,0.00010635,2]
[419922193,1775509835107,-151.0,0.00010635,2]
[419922194,1775509835117,-273.20808876,0.00010635,2]
[419922195,1775509835126,-151.0,0.00010635,2]
[419922196,1775509835137,-151.0,0.00010635,2]
[419922197,1775509835147,-496.32304571,0.00010635,2]
[419922198,1775509835156,-629.47078979,0.00010635,2]
[419922199,1775509835166,-151.6719064,0.00010635,2]
[419922200,1775509835175,-1084.35002386,0.0001064,3]
[419922201,1775509835185,-204.39633377,0.0001064,3]
[419922202,1775509835195,-150.0,0.0001064,2]
[419922203,1775509835204,-450.0,0.0001064,7]
[419922204,1775509835214,-500.0,0.0001064,2]
[419922205,1775509835223,-500.0,0.0001064,2]
[419922206,1775509835233,-500.0,0.0001064,2]
[419922207,1775509835242,-500.0,0.0001064,2]
[419922208,1775509835252,-500.0,0.0001064,2]
[419922209,1775509835261,-500.0,0.0001064,2]
[419922210,1775509835271,-500.0,0.0001064,2]
[419922211,1775509835281,-500.0,0.0001064,2]
[419922212,1775509835290,-500.0,0.0001064,2]
[419922213,1775509835300,-500.0,0.0001064,2]
[419922214,1775509835309,-500.0,0.0001064,2]
[419922215,1775509835319,-500.0,0.0001064,2]
[419922216,1775509835328,-500.0,0.0001064,2]
[419922217,1775509835338,-500.0,0.0001064,2]
[419922218,1775509835348,-500.0,0.0001064,2]
[419922219,1775509835358,-500.0,0.0001064,2]
[419922220,1775509835367,-500.0,0.0001064,2]
[419922221,1775509835376,-500.0,0.0001064,2]
[419922222,1775509835386,-500.0,0.0001064,2]
[419922223,1775509835395,-500.0,0.0001064,2]
[419922224,1775509835405,-500.0,0.0001064,2]
[419922225,1775509835414,-500.0,0.0001064,2]
[419922226,1775509835423,-334.30286461,0.0001064,2]
[419922227,1775509835432,-500.0,0.0001064,2]
[419922228,1775509835442,-500.0,0.0001064,2]
[419922229,1775509835451,-500.0,0.0001064,2]
[419922230,1775509835460,-500.0,0.0001064,2]
[419922231,1775509835470,-500.0,0.0001064,2]
[419922232,1775509835479,-500.0,0.0001064,2]
[419922233,1775509835488,-500.0,0.0001064,2]
[419922234,1775509835498,-500.0,0.0001064,2]
[419922235,1775509835507,-500.0,0.0001064,2]
[419922236,1775509835516,-235.67713001,0.0001064,2]
[419922237,1775509835661,-264.32286999,0.0001064,2]
[419922238,1775509835671,-500.0,0.0001064,2]
[419922239,1775509835680,-500.0,0.0001064,2]
[419922240,1775509835690,-277.26716878,0.0001064,2]
[419922241,1775509835702,-222.73283122,0.0001064,2]
[419922242,1775509835711,-500.0,0.0001064,2]
[419922243,1775509835720,-100.90816878,0.0001064,2]
[419922246,1775509838065,-399.09183122,0.0001064,2]
[419922247,1775509838074,-100.90816878,0.0001064,2]
[419922248,1775509838086,-399.09183122,0.0001064,2]
[419922249,1775509838096,-500.0,0.0001064,2]
[419922250,1775509838106,-500.0,0.0001064,2]
[419922251,1775509838122,-500.0,0.0001064,2]
[419922252,1775509838132,-500.0,0.0001064,2]
[419922253,1775509838142,-500.0,0.0001064,2]
[419922254,1775509838152,-500.0,0.0001064,2]
[419922255,1775509838162,-500.0,0.0001064,2]
[419922256,1775509838172,-500.0,0.0001064,2]
[419922257,1775509838182,-500.0,0.0001064,2]
[419922258,1775509838191,-500.0,0.0001064,2]
[419922259,1775509838201,-500.0,0.0001064,2]
[419922260,1775509838211,-500.0,0.0001064,2]
[419922261,1775509838220,-500.0,0.0001064,2]
[419922262,1775509838230,-500.0,0.0001064,2]
[419922263,1775509838239,-500.0,0.0001064,2]
[419922264,1775509838249,-500.0,0.0001064,2]
[419922265,1775509838258,-500.0,0.0001064,2]
[419922266,1775509838268,-500.0,0.0001064,2]
[419922267,1775509838278,-500.0,0.0001064,2]
[419922268,1775509838287,-500.0,0.0001064,2]
[419922269,1775509838296,-500.0,0.0001064,2]
[419922270,1775509838306,-500.0,0.0001064,2]
[419922271,1775509838315,-500.0,0.0001064,2]
[419922272,1775509838324,-500.0,0.0001064,2]
[419922273,1775509838334,-500.0,0.0001064,2]
[419922274,1775509838343,-500.0,0.0001064,2]
[419922275,1775509838352,-200.0,0.0001064,2]
[419922276,1775509838362,-500.0,0.0001064,2]
[419922277,1775509838372,-500.0,0.0001064,2]
[419922278,1775509838381,-500.0,0.0001064,2]
[419922279,1775509838391,-500.0,0.0001064,2]
[419922280,1775509838400,-500.0,0.0001064,2]
[419922281,1775509838409,-500.0,0.0001064,2]
[419922282,1775509838419,-500.0,0.0001064,2]
[419922283,1775509838428,-500.0,0.0001064,2]
[419922284,1775509838438,-500.0,0.0001064,2]
[419922285,1775509838447,-500.0,0.0001064,2]
[419922286,1775509838456,-500.0,0.0001064,2]
[419922287,1775509838467,-267.08455766,0.0001064,2]
[419922288,1775509838476,-312.61304999,0.0001064,2]
[419922289,1775509838486,-500.0,0.0001064,2]
[419922290,1775509838495,-149032.946,0.00010641,2]
[419922291,1775509838505,-1333075.51433684,0.00010641,2]
[419922292,1775509838518,-166924.48566316,0.00010641,2]
[419922293,1775509838528,-500.0,0.00010673,2]
[419922294,1775509838537,-500.0,0.00010673,2]
[419922295,1775509838546,-500.0,0.00010673,2]
[419922297,1775509838556,-500.0,0.00010673,2]
[419922299,1775509838565,-500.0,0.00010673,2]
[419922301,1775509838574,-500.0,0.00010673,2]
[419922303,1775509838584,-500.0,0.00010673,2]
[419922305,1775509838593,-500.0,0.00010673,2]
[419922307,1775509838603,-649.74579026,0.00010673,2]
[419922311,1775509838615,-204.26825693,0.00010673,2]
[419922313,1775509838624,-500.0,0.00010673,2]
[419922315,1775509838633,-2500.0,0.000107,3]
[419922317,1775509838642,-33478.20525193,0.000107,2]
[419922322,1775509838685,-330.98519203,0.000107,2]
[419922327,1775509838717,-336.64042432,0.000107,2]
[419922333,1775509838769,-2002.47137068,0.000107,2]
[419922336,1775509838781,-276.46709516,0.000107,2]
[419922338,1775509838793,-4730.75089867,0.000107,2]
[419922489,1775509840386,-68462.22482958,0.000107,2]
[419922490,1775509840396,-5000.0,0.000108,3]
[419922491,1775509840405,-1600.75972511,0.00010857,2]
[419922492,1775509840415,-377.0,0.00010879,2]
[419922493,1775509840424,-150.0,0.000109,2]
[419922494,1775509840434,-7500.0,0.000109,3]
[419922495,1775509840444,-500.0,0.00010959,2]
[419922496,1775509840453,-195.0,0.00010991,2]
[419922497,1775509840463,-195.0,0.00010991,2]
[419922499,1775509840472,-195.0,0.00010991,2]
[419922501,1775509840482,-195.0,0.00010991,2]
[419922503,1775509840492,-195.0,0.00010991,2]
[419922505,1775509840501,-600.0,0.00010991,2]
[419922508,1775509840517,-600.0,0.00010991,2]
[419922510,1775509840526,-600.0,0.00010991,2]
[419922512,1775509840536,-600.0,0.00010991,2]
[419922514,1775509840545,-600.0,0.00010991,2]
[419922516,1775509840555,-22193.46751981,0.00011099,2]
[419922518,1775509840565,-500.0,0.00011123,2]
[419922520,1775509840575,-22193.4675198,0.00011136,2]
[419922522,1775509840585,-200.0,0.00011183,2]
[419922524,1775509840594,-467.0,0.000112,5]
[419922526,1775509840604,-211.30186859,0.00011218,2]
[419922528,1775509840614,-250.0,0.00011219,2]
[419922530,1775509840623,-300.0,0.00011219,2]
[419922532,1775509840632,-300.0,0.00011219,2]
[419922534,1775509840642,-659.22316949,0.00011221,2]
[419922536,1775509840651,-1000.0,0.00011221,2]
[419922538,1775509840661,-1000.0,0.00011221,2]
[419922540,1775509840671,-1000.0,0.00011221,2]
[419922609,1775509841290,-1600.0,0.00011241,2]
[419922612,1775509841319,-5014.52890995,0.00011412,2]
[419922614,1775509841331,-521.24478859,0.00011461,2]
[419922616,1775509841340,-255.0,0.00011665,2]
[419922618,1775509841350,-223.0,0.0001169,2]
[419922620,1775509841359,-420.0,0.0001169,2]
[419922622,1775509841369,-1680.0,0.00011697,2]
[419922624,1775509841378,-200.0,0.00011731,2]
[419922626,1775509841387,-22193.4675198,0.00011732,2]
[419922628,1775509841397,-1500.0,0.00011768,2]
[419922630,1775509841407,-500.0,0.00011768,2]
[419922632,1775509841416,-1334.26277974,0.00011768,2]
[419922634,1775509841425,-500.0,0.00011973,2]
[419922636,1775509841434,-200.0,0.00012,2]
[419922638,1775509841443,-283.1,0.00012046,2]
[419922640,1775509841453,-2224.19,0.00012055,2]
[419922642,1775509841462,-152.0,0.00012129,3]
[419922644,1775509841471,-168.372,0.000122,2]
[419922646,1775509841481,-200.0,0.00012279,2]
[419922648,1775509841490,-2000.0,0.00012316,2]
[419922650,1775509841500,-22193.4675198,0.00012327,2]
[419922652,1775509841509,-152.0,0.00012333,4]
[419922654,1775509841518,-521.24478859,0.00012349,2]
[419922656,1775509841527,-500.0,0.00012355,2]
[419922658,1775509841537,-501.0,0.00012356,2]
[419922660,1775509841546,-1600.0,0.0001249,2]
[419922662,1775509841555,-152.0,0.00012537,5]
[419922664,1775509841564,-500.0,0.00012575,2]
[419922666,1775509841573,-152.0,0.0001274,6]
[419922668,1775509841582,-433.0,0.00012792,2]
[419922670,1775509841591,-200.0,0.00012827,2]
[419922672,1775509841601,-587.0,0.0001285,2]
[419922674,1775509841611,-1500.0,0.00012864,2]
[419922676,1775509841620,-2351.0,0.00012867,2]
[419922678,1775509841629,-202.30776909,0.00012892,2]
[419922680,1775509841638,-576.53932772,0.00012892,2]
[419922682,1775509841647,-500.0,0.00012892,2]
[419922684,1775509841656,-497.13263477,0.00012892,2]
[419922686,1775509841665,-171.50455894,0.00012892,2]
[419922688,1775509841674,-500.0,0.00012892,2]
[419922690,1775509841683,-500.0,0.00012892,2]
[419922692,1775509841693,-500.0,0.00012892,2]
[419922694,1775509841702,-500.0,0.00012892,2]
[419922696,1775509841712,-500.0,0.00012892,2]
[419922698,1775509841721,-500.0,0.00012892,2]
[419922700,1775509841730,-500.0,0.00012892,2]
[419922702,1775509841739,-549.7662911,0.00012892,2]
[419922704,1775509841748,-500.0,0.00012892,2]
[419922706,1775509841758,-500.0,0.00012892,2]
[419922708,1775509841767,-500.0,0.00012892,2]
[419922710,1775509841777,-500.0,0.00012892,2]
[419922712,1775509841786,-500.0,0.00012892,2]
[419922714,1775509841795,-489.60359272,0.00012892,2]
[419922716,1775509841805,-299.99,0.00012893,2]
[419922718,1775509841814,-9999.99,0.00012893,2]
[419922720,1775509841823,-4357.04,0.00012893,2]
[419922722,1775509841832,-9999.99,0.00012893,2]
[419922724,1775509841842,-150.99,0.00012893,2]
[419922726,1775509841851,-995.86,0.00012893,2]
[419922728,1775509841860,-1209.51,0.00012893,2]
[419922730,1775509841870,-999.99,0.00012893,2]
[419922733,1775509841879,-150.99,0.00012893,2]
[419922735,1775509841890,-313.09,0.00012893,2]
[419922737,1775509841899,-22193.4675198,0.00012923,2]
[419922739,1775509841909,-22560.65095947,0.00012941,2]
[419922741,1775509841918,-152.0,0.00012944,7]
[419922743,1775509841928,-250.0,0.00013,2]
[419922745,1775509841936,-58038.76756829,0.00013,7]
[419922747,1775509841946,-501.0,0.000131,2]
[419922749,1775509841955,-152.0,0.00013148,8]
[419922751,1775509841964,-521.24478859,0.00013237,2]
[419922753,1775509841974,-152.0,0.00013352,9]
[419922755,1775509841984,-200.0,0.00013375,2]
[419922757,1775509841993,-184.409202,0.00013424,2]
[419922760,1775509842012,-358.286043,0.00013424,2]
[419922762,1775509842023,-250.0,0.00013478,2]
[419922764,1775509842032,-188.9943,0.000135,2]
[419922766,1775509842042,-22193.4675198,0.00013518,2]
[419922768,1775509842051,-22560.65095947,0.00013532,2]
[419922770,1775509842061,-152.0,0.00013555,10]
[419922772,1775509842071,-500.0,0.00013698,2]
[419922774,1775509842080,-500.0,0.00013698,2]
[419922776,1775509842090,-500.0,0.00013698,2]
[419922778,1775509842099,-500.0,0.00013698,2]
[419922781,1775509842110,-500.0,0.00013698,2]
[419922783,1775509842122,-500.0,0.00013698,2]
[419922785,1775509842132,-500.0,0.00013698,2]
[419922787,1775509842141,-500.0,0.00013698,2]
[419922789,1775509842150,-500.0,0.00013698,2]
[419922791,1775509842160,-500.0,0.00013698,2]
[419922793,1775509842170,-500.0,0.00013698,2]
[419922795,1775509842179,-500.0,0.00013698,2]
[419922797,1775509842188,-500.0,0.00013698,2]
[419922799,1775509842198,-500.0,0.00013698,2]
[419922801,1775509842207,-500.0,0.00013698,2]
[419922803,1775509842216,-500.0,0.00013698,2]
[419922805,1775509842226,-500.0,0.00013698,2]
[419922807,1775509842235,-500.0,0.00013698,2]
[419922809,1775509842246,-500.0,0.00013698,2]
[419922811,1775509842255,-500.0,0.00013698,2]
[419922813,1775509842264,-500.0,0.00013698,2]
[419922815,1775509842274,-500.0,0.00013698,2]
[419922817,1775509842283,-500.0,0.00013698,2]
[419922819,1775509842292,-500.0,0.00013698,2]
[419922821,1775509842301,-500.0,0.00013698,2]
[419922824,1775509842311,-500.0,0.00013698,2]
[419922826,1775509842321,-500.0,0.00013698,2]
[419922828,1775509842330,-500.0,0.00013698,2]
[419922830,1775509842339,-500.0,0.00013698,2]
[419922832,1775509842349,-500.0,0.00013698,2]
[419922834,1775509842358,-500.0,0.00013698,2]
[419922836,1775509842367,-500.0,0.00013698,2]
[419922838,1775509842376,-500.0,0.00013698,2]
[419922840,1775509842385,-500.0,0.00013698,2]
[419922842,1775509842394,-500.0,0.00013698,2]
[419922844,1775509842403,-500.0,0.00013698,2]
[419922846,1775509842413,-508.61892667,0.00013698,2]
[419922848,1775509842422,-500.0,0.00013698,2]
[419922850,1775509842431,-500.0,0.00013698,2]
[419922852,1775509842440,-500.0,0.00013698,2]
[419922854,1775509842449,-500.0,0.00013698,2]
[419922856,1775509842458,-500.0,0.00013698,2]
[419922858,1775509842468,-500.0,0.00013698,2]
[419922860,1775509842477,-500.0,0.00013698,2]
[419922862,1775509842486,-500.0,0.00013698,2]
[419922864,1775509842495,-500.0,0.00013698,2]
[419922866,1775509842510,-500.0,0.00013698,2]
[419922868,1775509842520,-500.0,0.00013698,2]
[419922870,1775509842531,-500.0,0.00013698,2]
[419922873,1775509842541,-500.0,0.00013698,2]
[419922875,1775509842551,-500.0,0.00013698,2]
[419922877,1775509842561,-597.32595487,0.00013698,2]
[419922879,1775509842571,-500.0,0.00013698,2]
[419922881,1775509842581,-500.0,0.00013698,2]
[419922883,1775509842590,-500.0,0.00013698,2]
[419922885,1775509842600,-500.0,0.00013698,2]
[419922887,1775509842610,-500.0,0.00013698,2]
[419922889,1775509842619,-500.0,0.00013698,2]
[419922891,1775509842629,-500.0,0.00013698,2]
[419922893,1775509842639,-500.0,0.00013698,2]
[419922895,1775509842649,-500.0,0.00013698,2]
[419922897,1775509842659,-500.0,0.00013698,2]
[419922899,1775509842668,-500.0,0.00013698,2]
[419922902,1775509842678,-500.0,0.00013698,2]
[419922904,1775509842688,-500.0,0.00013698,2]
[419922906,1775509842698,-500.0,0.00013698,2]
[419922908,1775509842708,-500.0,0.00013698,2]
[419922910,1775509842719,-500.0,0.00013698,2]
[419922912,1775509842729,-500.0,0.00013698,2]
[419922914,1775509842740,-500.0,0.00013698,2]
[419922916,1775509842751,-500.0,0.00013698,2]
[419922918,1775509842761,-500.0,0.00013698,2]
[419922921,1775509842771,-500.0,0.00013698,2]
[419922925,1775509842781,-500.0,0.00013698,2]
[419922927,1775509842791,-500.0,0.00013698,2]
[419922929,1775509842802,-500.0,0.00013698,2]
[419922931,1775509842811,-500.0,0.00013698,2]
[419922933,1775509842821,-500.0,0.00013698,2]
[419922935,1775509842831,-500.0,0.00013698,2]
[419922937,1775509842841,-559.50723655,0.00013698,2]
[419922939,1775509842851,-500.0,0.00013698,2]
[419922941,1775509842861,-500.0,0.00013698,2]
[419922943,1775509842872,-500.0,0.00013698,2]
[419922945,1775509842882,-500.0,0.00013698,2]
[419922947,1775509842891,-500.0,0.00013698,2]
[419922949,1775509842902,-500.0,0.00013698,2]
[419922952,1775509842912,-503.57594394,0.00013698,2]
[419922955,1775509842923,-500.0,0.00013698,2]
[419922957,1775509842932,-500.0,0.00013698,2]
[419922959,1775509842942,-500.0,0.00013698,2]
[419922962,1775509842951,-500.0,0.00013698,2]
[419922964,1775509842961,-500.0,0.00013698,2]
[419922967,1775509842971,-500.0,0.00013698,2]
[419922969,1775509842980,-500.0,0.00013698,2]
[419922971,1775509842990,-500.0,0.00013698,2]
[419922973,1775509842999,-500.0,0.00013698,2]
[419922975,1775509843008,-500.0,0.00013698,2]
[419922977,1775509843018,-500.0,0.00013698,2]
[419922979,1775509843028,-500.0,0.00013698,2]
[419922981,1775509843037,-500.0,0.00013698,2]
[419922983,1775509843047,-500.0,0.00013698,2]
[419922985,1775509843057,-500.0,0.00013698,2]
[419922987,1775509843066,-500.0,0.00013698,2]
[419922989,1775509843076,-500.0,0.00013698,2]
[419922991,1775509843086,-500.0,0.00013698,2]
[419922993,1775509843095,-500.0,0.00013698,2]
[419922995,1775509843105,-500.0,0.00013698,2]
[419922997,1775509843114,-500.0,0.00013698,2]
[419922999,1775509843125,-500.0,0.00013698,2]
[419923001,1775509843134,-500.0,0.00013698,2]
[419923003,1775509843144,-500.0,0.00013698,2]
[419923005,1775509843155,-500.0,0.00013698,2]
[419923007,1775509843164,-500.0,0.00013698,2]
[419923009,1775509843174,-500.0,0.00013698,2]
[419923011,1775509843183,-500.0,0.00013698,2]
[419923013,1775509843193,-500.0,0.00013698,2]
[419923015,1775509843202,-500.0,0.00013698,2]
[419923017,1775509843212,-500.0,0.00013698,2]
[419923019,1775509843222,-500.0,0.00013698,2]
[419923021,1775509843231,-500.0,0.00013698,2]
[419923023,1775509843241,-500.0,0.00013698,2]
[419923025,1775509843252,-500.0,0.00013698,2]
[419923027,1775509843262,-500.0,0.00013698,2]
[419923029,1775509843272,-500.0,0.00013698,2]
[419923031,1775509843281,-500.0,0.00013698,2]
[419923033,1775509843291,-500.0,0.00013698,2]
[419923036,1775509843301,-500.0,0.00013698,2]
[419923038,1775509843311,-500.0,0.00013698,2]
[419923040,1775509843321,-500.0,0.00013698,2]
[419923042,1775509843331,-500.0,0.00013698,2]
[419923044,1775509843341,-500.0,0.00013698,2]
[419923046,1775509843350,-500.0,0.00013698,2]